bitfinex/quotes_ETHUSD_20230109
["timestamp","ask_amount","ask_price","bid_price","bid_amount"]
[1673279564146,0.185,1339.3,1339.0,3.5]
[1673279564570,0.185,1339.3,1338.9,8.066]
[1673279564950,7.65174,1339.3,1338.9,8.066]
[1673279565113,7.71774,1339.3,1338.9,8.066]
[1673279565322,7.71758,1339.3,1338.9,8.066]
[1673279565482,0.251,1339.3,1338.9,8.066]
[1673279565697,0.185,1339.3,1338.9,8.066]
[1673279565906,7.65161,1339.3,1338.9,8.066]
[1673279566177,15.18422,1339.3,1338.9,8.066]
[1673279566371,0.251,1339.3,1338.9,8.066]
[1673279566544,0.185,1339.3,1339.0,0.8066]
[1673279566761,7.6516,1339.3,1339.0,0.8066]
[1673279567110,7.7176,1339.3,1338.9,8.066]
[1673279567275,11.33094407,1339.3,1338.9,8.066]
[1673279567474,7.63258,1339.3,1338.9,8.066]
[1673279568110,0.166,1339.3,1339.0,3.5]
[1673279568316,0.1,1339.3,1339.0,10.96819]
[1673279568526,0.1,1339.3,1339.0,0.066]
[1673279568741,0.1,1339.3,1338.9,8.066]
[1673279568962,7.56658,1339.3,1338.9,8.066]
[1673279569210,0.166,1339.3,1338.9,15.53481]
[1673279569397,0.1,1339.3,1338.9,19.03481]
[1673279569596,0.1,1339.3,1338.9,8.066]
[1673279571096,0.1,1339.3,1339.0,1.00515302]
[1673279571264,0.1,1339.3,1339.1,11.79766064]
[1673279571475,0.1,1339.3,1339.1,11.86366064]
[1673279572327,0.1,1339.3,1339.1,0.066]
[1673279572572,10.56669,1339.3,1338.9,8.066]
[1673279572791,11.19279,1339.3,1338.9,11.86366064]
[1673279572949,13.749323,1339.3,1338.9,11.86366064]
[1673279573159,13.749323,1339.3,1339.0,3.79766064]
[1673279573160,11.19275,1339.3,1339.0,3.79766064]
[1673279573387,10.13280663,1339.3,1339.0,3.79766064]
[1673279573700,22.24868047,1339.3,1338.9,8.066]
[1673279574104,2.66615663,1339.3,1339.0,17.79766064]
[1673279574313,8.07871001,1339.3,1339.1,3.79766064]
[1673279574526,0.11800001,1339.3,1339.2,25.79766064]
[1673279574735,0.05200001,1339.3,1339.2,37.98002448]
[1673279575001,0.05200001,1339.3,1339.2,30.51288448]
[1673279575199,13.393936,1340.0,1339.4,7.46575]
[1673279575200,0.066,1340.0,1339.4,7.46575]
[1673279575374,0.066,1340.1,1339.9,14.0]
[1673279575589,2.384,1340.4,1340.0,3.79766064]
[1673279575784,0.5597,1340.2,1340.0,3.79766064]
[1673279576000,0.002,1340.2,1340.0,3.79766064]
[1673279576199,4.0597,1340.3,1340.0,3.79766064]
[1673279576200,0.5597,1340.3,1340.1,17.79766064]
[1673279576424,0.5597,1340.3,1340.2,3.79766064]
[1673279576837,7.46075,1340.4,1340.2,3.79766064]
[1673279576838,0.6257,1340.4,1340.2,3.79766064]
[1673279577044,0.5597,1340.4,1340.3,17.79766064]
[1673279577258,0.5596,1340.6,1340.3,17.86366064]
[1673279577466,7.52486,1340.7,1340.4,3.79766064]
[1673279577785,4.318486,1340.7,1340.4,3.79766064]
[1673279578025,0.5596,1340.6,1340.4,3.79766064]
[1673279578461,0.066,1340.7,1340.4,3.79766064]
[1673279578654,10.9586,1340.8,1340.4,3.79766064]
[1673279578846,11.0246,1340.8,1340.4,3.79766064]
[1673279579050,1.66196,1340.7,1340.4,3.79766064]
[1673279579261,16.57976,1340.7,1340.4,3.79766064]
[1673279579520,1.72796,1340.7,1340.3,14.066]
[1673279579673,9.1209,1340.7,1340.4,3.79766064]
[1673279579884,0.066,1340.7,1340.5,3.79766064]
[1673279580134,0.066,1340.7,1340.3,14.066]
[1673279580135,3.0,1340.7,1340.6,3.79766064]
[1673279580309,0.066,1340.8,1340.6,17.79766064]
[1673279580519,5.822,1341.0,1340.6,17.79766064]
[1673279580520,13.3452,1341.0,1340.6,17.86366064]
[1673279580729,8.01722,1340.9,1340.6,17.86366064]
[1673279580958,10.219462,1340.9,1340.6,17.86366064]
[1673279581178,2.761742,1340.9,1340.7,3.79766064]
[1673279581360,8.01718,1340.9,1340.7,3.79766064]
[1673279581578,0.6255,1340.9,1340.7,3.79766064]
[1673279581812,0.066,1341.0,1340.7,3.79766064]
[1673279582030,7.45754,1341.0,1340.8,3.79766064]
[1673279582344,10.080027,1341.2,1341.1,0.9421571]
[1673279582345,7.754867,1341.2,1341.1,0.9421571]
[1673279582565,7.754867,1341.2,1340.5,17.5]
[1673279582566,3.317,1341.0,1340.5,17.5]
[1673279582718,3.5,1340.9,1340.5,0.066]
[1673279582927,3.5,1340.9,1340.0,0.126]
[1673279582928,22.37502,1340.8,1340.0,0.126]
[1673279583188,22.37502,1340.8,1339.9,26.0246]
[1673279583189,22.37985,1340.5,1339.9,22.7159]
[1673279583398,22.44585,1340.5,1340.0,0.91703413]
[1673279583556,22.44585,1340.5,1340.1,0.91349924]
[1673279583557,23.00545,1340.5,1340.1,0.91349924]
[1673279583770,23.00545,1340.5,1340.2,0.90996461]
[1673279583977,23.00545,1340.5,1340.1,14.0]
[1673279583978,8.0855,1340.5,1340.4,14.0]
[1673279584191,15.5454,1340.5,1340.4,0.066]
[1673279584449,17.845892,1340.5,1340.2,0.066]
[1673279584667,17.845892,1340.5,1340.0,14.066]
[1673279584826,3.5,1340.4,1340.2,14.0]
[1673279585038,22.38303,1340.3,1340.2,14.066]
[1673279585245,22.44903,1340.3,1340.2,14.066]
[1673279585708,0.5596,1340.6,1340.3,1.90955739]
[1673279585874,0.5596,1340.6,1340.4,14.0]
[1673279585875,15.47844,1340.6,1340.4,14.0]
[1673279586081,15.54444,1340.6,1340.4,14.066]
[1673279586670,0.6256,1340.6,1340.5,3.79766064]
[1673279586823,0.066,1340.8,1340.5,11.79766064]
[1673279587024,7.45823,1340.8,1340.7,14.0]
[1673279587280,7.52423,1340.8,1340.7,14.066]
[1673279587535,0.066,1340.8,1340.7,14.066]
[1673279587711,7.45791,1340.9,1340.7,17.86366064]
[1673279587869,7.52391,1340.9,1340.7,14.066]
[1673279588079,16.536123,1340.9,1340.7,14.066]
[1673279588295,14.98204,1340.9,1340.7,14.066]
[1673279589067,14.98204,1340.9,1340.8,3.79766064]
[1673279589292,7.52367,1340.9,1340.8,3.79766064]
[1673279589606,14.98134,1340.9,1340.7,14.066]
[1673279590548,22.43901,1340.9,1340.7,0.066]
[1673279590701,22.43901,1340.9,1340.3,9.97555739]
[1673279590702,3.5,1340.7,1340.3,9.97555739]
[1673279590914,3.5,1340.5,1340.3,9.97555739]
[1673279591311,0.066,1340.6,1340.5,6.91217619]
[1673279591470,7.45902,1340.7,1340.5,17.51913768]
[1673279591471,0.066,1340.7,1340.5,17.51913768]
[1673279591708,0.066,1341.0,1340.6,26.01512034]
[1673279591873,8.4911377,1341.5,1340.6,26.01512034]
[1673279591874,1.1627077,1341.5,1340.9,29.25233515]
[1673279592070,1.1627077,1341.5,1341.3,14.0]
[1673279592071,8.4915077,1341.5,1341.3,14.0]
[1673279592280,1.1027077,1341.5,1341.3,22.066]
[1673279592614,1.1027077,1341.5,1341.4,14.0]
[1673279592615,1.0367077,1341.5,1341.4,14.0]
[1673279592823,1.0367077,1341.5,1341.4,0.066]
[1673279593052,0.9867077,1341.5,1341.3,8.066]
[1673279593276,0.9867077,1341.5,1341.4,16.54066143]
[1673279593590,0.9867077,1341.5,1341.4,16.60666143]
[1673279594129,0.9867077,1341.5,1341.4,24.06155143]
[1673279594298,0.9867077,1341.5,1341.4,40.97307712]
[1673279594642,0.9867077,1341.5,1341.4,48.42751537]
[1673279594801,0.9867077,1341.5,1341.4,16.60666143]
[1673279595013,0.9867077,1341.5,1341.4,35.01644143]
[1673279595220,7.7e-06,1341.5,1341.4,39.70344143]
[1673279595645,7.7e-06,1341.5,1341.4,40.45979861]
[1673279595854,7.7e-06,1341.5,1341.4,45.25273755]
[1673279596126,7.7e-06,1341.5,1341.4,44.49638037]
[1673279596427,7.7e-06,1341.5,1341.4,49.78173755]
[1673279596591,0.3609816,1341.9,1341.4,52.78173755]
[1673279596801,0.3609816,1341.9,1341.8,24.5741151]
[1673279597051,1.6e-06,1341.9,1341.8,24.6401151]
[1673279597536,1.6e-06,1341.9,1341.8,32.0927851]
[1673279597748,1.6e-06,1341.9,1341.8,24.6401151]
[1673279598218,0.2,1342.0,1341.8,32.0927851]
[1673279598427,0.2,1342.0,1341.9,2.54949651]
[1673279598900,0.2,1342.0,1341.9,10.00161651]
[1673279599110,0.2,1342.0,1341.9,2.61549651]
[1673279599357,0.2,1342.0,1341.9,2.54949651]
[1673279599577,0.2,1342.0,1341.9,17.45373651]
[1673279599779,0.2,1342.0,1341.9,2.61549651]
[1673279599993,0.2,1342.0,1341.9,10.00161651]
[1673279600186,9.33856,1342.0,1341.9,2.5900089]
[1673279600374,9.33856,1342.0,1341.9,2.5240089]
[1673279600375,2.942756,1342.0,1341.9,2.5240089]
[1673279600597,1.887,1342.0,1341.8,14.066]
[1673279600793,0.2,1342.0,1341.9,10.52501347]
[1673279601000,0.2,1342.0,1341.9,10.58721094]
[1673279601260,0.2,1342.0,1341.9,8.066]
[1673279601261,8.21056,1342.0,1341.9,8.066]
[1673279601429,7.71756,1342.0,1341.9,8.066]
[1673279601641,15.16912,1342.0,1341.9,0.066]
[1673279601885,17.487059,1342.0,1341.8,14.066]
[1673279602305,15.16912,1342.0,1341.8,14.066]
[1673279602784,18.66912,1342.0,1341.8,14.066]
[1673279602944,18.66912,1342.0,1341.8,0.066]
[1673279603162,18.66912,1342.0,1341.5,49.0]
[1673279603163,2.133,1341.9,1341.5,57.066]
[1673279603473,22.35834,1341.8,1341.5,22.066]
[1673279603683,25.618728,1341.8,1341.5,22.066]
[1673279603932,25.618728,1341.8,1341.5,0.066]
[1673279603933,29.81512,1341.6,1341.5,0.066]
[1673279604148,29.81512,1341.6,1341.3,14.0]
[1673279604149,29.88112,1341.6,1341.3,0.066]
[1673279604362,0.5592,1341.5,1341.1,0.066]
[1673279604584,22.365,1341.4,1341.2,14.0]
[1673279604884,22.365,1341.4,1341.2,0.066]
[1673279604885,22.431,1341.4,1341.2,0.066]
[1673279605102,22.431,1341.4,1341.1,16.57967493]
[1673279605103,15.4702,1341.3,1341.1,16.57967493]
[1673279605304,15.4702,1341.3,1341.1,0.066]
[1673279605305,15.5362,1341.3,1341.1,0.066]
[1673279605482,22.37001,1341.1,1340.8,14.0]
[1673279605698,22.37001,1341.1,1340.8,14.066]
[1673279605699,20.46148764,1341.1,1340.8,14.066]
[1673279606041,20.46148764,1341.1,1340.8,22.066]
[1673279606216,20.46148764,1341.1,1340.8,0.066]
[1673279606425,23.4086474,1341.1,1340.6,14.066]
[1673279606647,3.0,1341.0,1340.6,14.066]
[1673279606965,22.37334,1340.9,1340.6,16.58372907]
[1673279607177,22.37334,1340.9,1340.8,14.0]
[1673279607178,0.066,1340.9,1340.8,14.0]
[1673279607373,0.012,1341.1,1340.9,3.632]
[1673279607587,7.727,1341.3,1341.0,14.0]
[1673279607588,8.01543,1341.2,1341.0,14.0]
[1673279607781,8.01543,1341.2,1341.0,14.066]
[1673279607782,15.53756,1341.2,1341.0,14.066]
[1673279607989,15.53756,1341.2,1341.0,17.86366064]
[1673279608215,0.066,1341.2,1341.1,11.79766064]
[1673279608424,0.271,1341.3,1341.1,11.86366064]
[1673279608671,0.271,1341.3,1341.2,17.79766064]
[1673279608886,0.271,1341.3,1341.2,26.15239064]
[1673279609038,0.271,1341.3,1341.2,26.90874782]
[1673279609505,0.271,1341.3,1341.2,22.12001782]
[1673279609819,0.271,1341.3,1341.2,18.62001782]
[1673279610028,0.271,1341.3,1341.2,17.86366064]
[1673279611174,0.271,1341.3,1341.2,14.066]
[1673279611386,7.72645,1341.3,1341.2,14.066]
[1673279611638,0.337,1341.3,1341.2,14.066]
[1673279611840,15.1819,1341.3,1341.2,14.066]
[1673279612059,15.1819,1341.3,1341.2,17.86366064]
[1673279612060,15.2479,1341.3,1341.2,17.86366064]
[1673279612444,15.2479,1341.3,1341.2,14.066]
[1673279612808,22.70335,1341.3,1341.2,14.066]
[1673279612963,22.70335,1341.3,1341.1,8.0]
[1673279612964,25.775105,1341.3,1341.1,8.0]
[1673279613173,25.775105,1341.3,1340.9,0.132]
[1673279613386,4.0593,1341.2,1340.9,0.132]
[1673279613761,8.0153,1341.2,1340.9,0.132]
[1673279613962,15.53741,1341.2,1340.9,0.132]
[1673279614136,18.77346956,1341.2,1340.9,0.132]
[1673279614966,26.22957956,1341.2,1340.9,0.132]
[1673279615423,26.22957956,1341.2,1340.9,17.92966064]
[1673279615424,0.6253,1341.2,1340.9,17.92966064]
[1673279615645,7.45567,1341.3,1340.9,17.92966064]
[1673279615646,0.066,1341.3,1341.1,22.0]
[1673279615859,14.97534,1341.5,1341.1,30.68161532]
[1673279616019,7.52054,1341.5,1341.1,30.68161532]
[1673279616230,0.5592,1341.4,1341.1,25.86366064]
[1673279616544,14.9109,1341.3,1341.1,25.86366064]
[1673279616904,0.066,1341.3,1341.1,25.86366064]
[1673279617120,14.91138,1341.3,1341.1,25.86366064]
[1673279617431,14.97738,1341.3,1341.1,25.86366064]
[1673279618008,19.78531456,1341.3,1341.1,25.86366064]
[1673279618693,19.78531456,1341.3,1341.2,3.79766064]
[1673279618694,4.87393456,1341.3,1341.2,3.79766064]
[1673279618856,4.80793456,1341.3,1341.2,3.79766064]
[1673279619060,4.75793456,1341.3,1341.2,7.29766064]
[1673279619325,4.75793456,1341.3,1341.2,7.36366064]
[1673279620023,4.75793456,1341.3,1341.2,3.86366064]
[1673279620219,4.75793456,1341.3,1341.2,3.79766064]
[1673279620429,4.75793456,1341.3,1341.1,22.066]
[1673279620430,12.06338456,1341.3,1341.1,22.066]
[1673279620687,19.58483456,1341.3,1341.1,25.86366064]
[1673279620858,27.04028456,1341.3,1341.1,25.86366064]
[1673279621078,26.04028456,1341.3,1341.1,25.86366064]
[1673279621706,26.04028456,1341.3,1341.1,22.066]
[1673279621917,26.04028456,1341.3,1341.1,8.066]
[1673279622112,17.51602846,1341.2,1341.1,8.066]
[1673279622323,14.978,1341.2,1341.1,8.066]
[1673279622742,0.066,1341.2,1341.1,8.066]
[1673279622995,3.60793456,1341.3,1341.1,8.066]
[1673279623194,3.60793456,1341.3,1341.2,14.0]
[1673279623424,3.60793456,1341.3,1341.2,14.066]
[1673279623596,3.60793456,1341.3,1341.2,17.566]
[1673279623812,3.60793456,1341.3,1341.2,21.36366064]
[1673279624593,3.60793456,1341.3,1341.2,17.86366064]
[1673279624742,18.52083456,1341.3,1341.2,17.86166064]
[1673279624946,18.58483456,1341.3,1341.2,17.86366064]
[1673279625258,18.58483456,1341.3,1341.2,14.066]
[1673279625259,26.04028456,1341.3,1341.2,14.066]
[1673279625590,24.06607879,1341.3,1341.2,14.066]
[1673279625950,24.06607879,1341.3,1341.2,0.066]
[1673279626109,24.06607879,1341.3,1341.1,22.066]
[1673279626324,24.06607879,1341.3,1341.1,25.86366064]
[1673279627171,24.06607879,1341.3,1341.1,22.066]
[1673279628167,24.06607879,1341.3,1341.1,35.066]
[1673279628318,27.27412467,1341.3,1341.1,43.066]
[1673279628948,27.27412467,1341.3,1341.1,0.066]
[1673279629321,27.27412467,1341.3,1340.9,8.132]
[1673279629322,2.0903,1341.2,1340.9,8.132]
[1673279629620,22.36968,1341.1,1340.9,8.198]
[1673279629841,22.43568,1341.1,1340.9,8.198]
[1673279630366,25.44001812,1341.1,1340.9,8.198]
[1673279630524,25.44001812,1341.1,1340.9,0.198]
[1673279630733,25.44001812,1341.1,1340.9,0.132]
[1673279632092,11.12152,1341.0,1340.9,0.132]
[1673279632307,26.10176,1341.0,1340.9,0.132]
[1673279634113,30.50372081,1341.0,1340.7,8.066]
[1673279635885,34.30138145,1341.0,1340.7,8.066]
[1673279636129,3.79766064,1340.9,1340.7,0.066]
[1673279636451,28.97272081,1341.0,1340.6,35.066]
[1673279636452,15.30848081,1341.0,1340.6,35.066]
[1673279636663,15.47596,1340.8,1340.6,0.066]
[1673279636987,22.44091,1340.8,1340.5,0.00995243]
[1673279637306,22.37802,1340.6,1340.5,0.00995243]
[1673279637520,22.44402,1340.6,1340.5,0.00995243]
[1673279638619,0.066,1340.6,1340.5,0.00995243]
[1673279638828,8.08438,1340.7,1340.5,3.50995243]
[1673279639038,15.54326,1340.7,1340.5,0.00995243]
[1673279639290,23.00214,1340.7,1340.5,0.00995243]
[1673279639770,7.29766064,1340.6,1340.5,2.43e-06]
[1673279640140,7.29766064,1340.6,1340.2,0.01055422]
[1673279640141,3.5,1340.5,1340.2,0.01055422]
[1673279640374,33.98946064,1340.4,1340.2,0.01055422]
[1673279640529,22.79735,1340.4,1340.2,0.01055422]
[1673279640868,9.59471,1340.3,1340.2,0.01055422]
[1673279641033,17.12172,1340.3,1340.2,0.01055422]
[1673279642344,0.6257,1340.3,1340.2,0.01055422]
[1673279642557,7.52564,1340.6,1340.2,3.80821486]
[1673279642729,7.52564,1340.6,1340.2,16.63768392]
[1673279642730,0.066,1340.6,1340.2,16.63768392]
[1673279642928,0.066,1340.6,1340.2,12.63057204]
[1673279642929,7.45934,1340.6,1340.2,12.63057204]
[1673279643137,0.066,1340.6,1340.5,14.0]
[1673279643498,0.6255,1340.9,1340.5,30.90938688]
[1673279643655,7.45698,1341.1,1340.5,30.90938688]
[1673279643656,0.5594,1341.0,1340.7,8.0]
[1673279643873,8.01669,1341.0,1340.7,8.066]
[1673279644098,8.08269,1341.0,1340.7,8.066]
[1673279644310,17.093947,1341.0,1340.7,8.066]
[1673279644658,9.636657,1341.0,1340.7,0.066]
[1673279644819,9.636657,1341.0,1340.5,22.82235718]
[1673279644820,17.093777,1341.0,1340.5,22.82235718]
[1673279645192,8.08256,1341.0,1340.6,3.79766064]
[1673279645342,8.08256,1341.0,1340.7,3.5]
[1673279645546,8.08256,1341.0,1340.7,4.25635718]
[1673279646822,8.08256,1341.0,1340.7,8.05401782]
[1673279647044,8.08256,1341.0,1340.8,3.79766064]
[1673279647045,0.066,1341.0,1340.8,3.79766064]
[1673279647261,9.08920879,1341.3,1340.8,3.79766064]
[1673279647262,9.15520879,1341.3,1340.9,15.29766064]
[1673279647475,9.15565879,1341.3,1341.0,3.79766064]
[1673279647694,9.71457879,1341.3,1341.0,3.79766064]
[1673279647923,17.17012879,1341.3,1341.0,4.55401782]
[1673279648067,17.17012879,1341.3,1341.0,0.75635718]
[1673279648068,24.62567879,1341.3,1341.0,0.75635718]
[1673279648528,27.86403943,1341.3,1340.9,0.066]
[1673279648716,27.86403943,1341.3,1340.7,0.066]
[1673279648717,4.35696064,1341.2,1340.7,0.066]
[1673279648934,4.35696064,1341.2,1340.4,25.566]
[1673279648935,33.62502064,1341.1,1340.4,25.566]
[1673279649274,33.62502064,1341.1,1340.4,0.066]
[1673279649275,22.37436,1340.9,1340.4,0.066]
[1673279649460,22.3767,1340.7,1340.2,51.73655422]
[1673279649658,22.4427,1340.7,1340.3,22.0]
[1673279650017,22.4427,1340.7,1340.3,22.066]
[1673279650399,14.9838,1340.7,1340.3,22.066]
[1673279650740,14.9838,1340.7,1340.3,25.86366064]
[1673279650913,17.5077186,1340.7,1340.3,0.066]
[1673279651123,24.9666186,1340.7,1340.2,0.01055422]
[1673279651590,14.9198,1340.5,1340.3,22.0]
[1673279651748,13.01073641,1340.5,1340.3,22.066]
[1673279652182,0.066,1340.5,1340.3,22.066]
[1673279652431,0.5596,1340.6,1340.3,25.86366064]
[1673279652595,8.01894,1340.6,1340.3,25.86366064]
[1673279652805,15.54428,1340.6,1340.3,8.066]
[1673279653027,19.34194064,1340.6,1340.3,0.066]
[1673279653270,3.79766064,1340.5,1340.2,0.01055422]
[1673279653479,34.0192267,1340.4,1340.2,0.01055422]
[1673279653693,33.53377874,1340.4,1340.2,0.01055422]
[1673279654058,30.84726606,1340.4,1340.2,0.01055422]
[1673279654688,34.6449267,1340.4,1340.2,0.01055422]
[1673279654905,3.79766064,1340.3,1340.1,0.035037]
[1673279655135,33.33104606,1340.2,1340.1,0.035037]
[1673279655350,33.33104606,1340.2,1339.9,0.01055422]
[1673279655351,39.7235067,1340.2,1339.9,0.01055422]
[1673279655565,3.79766064,1340.1,1339.9,4.22e-06]
[1673279655774,29.85072,1340.0,1339.7,0.00967066]
[1673279656104,22.3914,1339.8,1339.7,0.00967066]
[1673279656288,22.4574,1339.8,1339.7,0.00967066]
[1673279657345,24.70314,1339.8,1339.7,0.00967066]
[1673279657557,9.77554,1339.8,1339.7,0.00967066]
[1673279657789,14.9936,1339.8,1339.7,0.00967066]
[1673279658637,7.5298,1339.8,1339.7,0.00967066]
[1673279659001,14.9936,1339.8,1339.7,0.00967066]
[1673279659208,7.5298,1339.8,1339.7,0.00967066]
[1673279659684,7.46275,1340.0,1339.8,2.89760946]
[1673279659846,7.46361,1339.9,1339.8,2.89760946]
[1673279660057,0.066,1339.9,1339.8,29.45162728]
[1673279660297,0.6258,1340.2,1339.8,37.72972914]
[1673279660507,8.0214,1340.2,1339.9,3.5]
[1673279660696,8.0874,1340.2,1339.9,3.5]
[1673279661211,0.066,1340.2,1340.0,0.75635718]
[1673279661450,0.5597,1340.4,1340.1,3.79766064]
[1673279661663,17.80045,1340.6,1340.1,3.79766064]
[1673279661664,15.47997,1340.5,1340.1,3.79766064]
[1673279661837,15.47997,1340.5,1340.1,0.75635718]
[1673279661838,14.92138,1340.4,1340.1,0.75635718]
[1673279662050,14.92138,1340.4,1339.9,3.566]
[1673279662051,22.44807,1340.4,1339.9,3.566]
[1673279662265,0.5597,1340.3,1339.9,3.5]
[1673279662590,0.5597,1340.3,1339.8,15.11996664]
[1673279662591,14.92336,1340.2,1339.8,15.11996664]
[1673279662799,14.92336,1340.2,1339.8,6.36360946]
[1673279662800,0.066,1340.2,1339.8,6.36360946]
[1673279663009,15.48223,1340.3,1339.9,25.79766064]
[1673279663217,14.98853,1340.3,1340.0,3.5]
[1673279663427,14.98853,1340.3,1340.0,7.29766064]
[1673279663641,14.98853,1340.3,1340.0,7.36366064]
[1673279663948,0.066,1340.3,1340.0,7.36366064]
[1673279664310,8.02027,1340.4,1340.0,7.36366064]
[1673279664311,14.98742,1340.4,1340.0,7.36366064]
[1673279664464,7.46103,1340.3,1340.0,7.36366064]
[1673279664677,0.066,1340.3,1340.0,7.36366064]
[1673279664902,14.98738,1340.4,1340.0,7.36366064]
[1673279665245,22.44821,1340.4,1340.0,7.36366064]
[1673279665491,22.44821,1340.4,1340.0,0.066]
[1673279665670,3.5,1340.3,1339.9,0.064]
[1673279665831,22.38504,1340.2,1339.8,2.86360946]
[1673279666041,22.45104,1340.2,1339.9,35.0]
[1673279666356,22.45104,1340.2,1339.9,35.066]
[1673279666985,26.24870064,1340.2,1339.9,35.066]
[1673279667208,22.38804,1340.0,1339.9,0.066]
[1673279667458,22.45404,1340.0,1339.8,2.79760946]
[1673279668398,26.25170064,1340.0,1339.8,2.79760946]
[1673279668615,30.93070064,1340.0,1339.8,2.79760946]
[1673279668977,11.12814,1339.9,1339.8,2.79760946]
[1673279669191,32.81413488,1339.9,1339.8,2.79760946]
[1673279669612,32.81413488,1339.9,1339.8,9.46e-06]
[1673279669613,36.61179552,1339.9,1339.8,9.46e-06]
[1673279672450,44.07503552,1339.9,1339.8,9.46e-06]
[1673279673074,3.5,1339.8,1339.5,0.75285472]
[1673279673340,29.8574,1339.7,1339.5,0.75285472]
[1673279673499,32.96901317,1339.7,1339.5,0.75285472]
[1673279673712,3.5,1339.6,1339.5,0.75285472]
[1673279673952,28.50708111,1339.7,1339.5,0.75285472]
[1673279674130,28.50708111,1339.7,1339.5,4.55051536]
[1673279674131,13.01838111,1339.7,1339.5,4.55051536]
[1673279674353,7.53036,1339.7,1339.5,4.55051536]
[1673279674577,22.45907,1339.7,1339.5,0.75285472]
[1673279674789,0.066,1339.7,1339.5,0.75285472]
[1673279674971,3.3009,1339.9,1339.5,0.75285472]
[1673279675180,10.76443,1339.9,1339.5,0.75285472]
[1673279675430,25.7572,1339.9,1339.5,0.75285472]
[1673279675644,29.04932,1339.9,1339.5,0.75285472]
[1673279676050,14.9287,1339.7,1339.5,0.75285472]
[1673279676240,14.9947,1339.7,1339.5,0.75285472]
[1673279676442,23.01905,1339.7,1339.5,0.75285472]
[1673279678276,3.105,1339.6,1339.5,0.75285472]
[1673279678602,25.49973,1339.6,1339.5,0.75285472]
[1673279678750,25.56573,1339.6,1339.5,0.75285472]
[1673279678962,28.924738,1339.6,1339.5,0.75285472]
[1673279679175,25.56573,1339.6,1339.5,0.75285472]
[1673279680366,8.02435,1339.7,1339.6,2.89818533]
[1673279680367,0.56,1339.7,1339.6,2.89818533]
[1673279680589,0.56,1339.7,1339.6,1.54718533]
[1673279680590,15.4887,1339.7,1339.6,1.54718533]
[1673279680800,23.01905,1339.7,1339.6,1.54718533]
[1673279681324,0.626,1339.7,1339.6,1.54718533]
[1673279681485,15.4887,1339.7,1339.6,1.54718533]
[1673279681696,15.5547,1339.7,1339.6,1.54718533]
[1673279682163,23.01905,1339.7,1339.6,1.54718533]
[1673279683750,22.96905,1339.7,1339.6,1.54718533]
[1673279683905,22.96905,1339.7,1339.6,5.33e-06]
[1673279684112,22.96905,1339.7,1339.2,18.50517426]
[1673279684113,26.76671064,1339.7,1339.2,18.50517426]
[1673279684476,26.76671064,1339.7,1339.2,0.066]
[1673279684477,37.32779,1339.5,1339.2,0.066]
[1673279684652,3.5,1339.3,1339.1,0.01735584]
[1673279684861,7.53043964,1339.4,1339.1,0.01735584]
[1673279684862,8.09252,1339.4,1339.1,0.01735584]
[1673279685201,0.6261,1339.4,1339.1,0.77371302]
[1673279685531,10.733,1339.5,1339.1,0.77371302]
[1673279685532,18.82453,1339.5,1339.2,3.5]
[1673279685704,26.29039,1339.5,1339.2,3.5]
[1673279685910,7.46606,1339.4,1339.2,4.25635718]
[1673279686139,14.99812,1339.4,1339.1,3.566]
[1673279686323,14.99812,1339.4,1339.1,3.5]
[1673279686758,0.066,1339.4,1339.1,3.5]
[1673279686991,21.753689,1339.5,1339.1,3.5]
[1673279687169,7.46619,1339.4,1339.1,3.5]
[1673279687382,18.6669679,1339.4,1339.1,3.5]
[1673279687596,18.6669679,1339.4,1339.0,39.65852743]
[1673279687822,22.46462854,1339.4,1339.0,38.566]
[1673279688031,22.46462854,1339.4,1339.0,3.566]
[1673279688242,22.46462854,1339.4,1339.0,3.5]
[1673279688440,14.93428,1339.2,1339.0,3.5]
[1673279688655,15.00028,1339.2,1339.0,3.5]
[1673279688840,22.46742,1339.2,1338.9,4.67693727]
[1673279689057,22.46742,1339.2,1339.0,1.85309602]
[1673279689402,0.066,1339.2,1338.9,3.58440984]
[1673279689615,25.28100854,1339.4,1339.0,1.85313026]
[1673279689616,32.81356854,1339.4,1339.0,1.85313026]
[1673279689997,32.81356854,1339.4,1339.1,0.38085175]
[1673279690248,0.5601,1339.3,1339.1,0.38085175]
[1673279690462,8.02674,1339.3,1339.2,3.79766064]
[1673279690778,0.066,1339.3,1339.2,3.5]
[1673279690998,10.799,1339.5,1339.2,3.5]
[1673279691822,10.799,1339.5,1339.2,10.96711]
[1673279692033,10.799,1339.5,1339.2,18.50025]
[1673279692465,10.799,1339.5,1339.2,11.03311]
[1673279692623,10.799,1339.5,1339.2,15.00025]
[1673279692838,11.9349,1339.5,1339.2,15.00025]
[1673279693276,38.12970064,1339.5,1339.2,0.066]
[1673279693465,14.31612438,1339.5,1339.2,3.5]
[1673279693673,0.5601,1339.4,1339.2,3.5]
[1673279694131,0.5601,1339.4,1339.1,18.88151175]
[1673279694553,0.5601,1339.4,1339.1,26.34921175]
[1673279694767,21.7901712,1339.5,1339.1,15.38151175]
[1673279694976,1.37644512,1339.4,1339.1,7.91406175]
[1673279695149,8.84249512,1339.4,1339.1,0.44685175]
[1673279695369,1.44244512,1339.4,1339.1,0.38085175]
[1673279695568,1.37644512,1339.4,1339.1,0.38085175]
[1673279695778,8.84250512,1339.4,1339.1,0.38085175]
[1673279695988,16.37456512,1339.4,1339.1,0.38085175]
[1673279696457,1.44244512,1339.4,1339.1,11.34840175]
[1673279696678,9.39089056,1339.5,1339.1,11.71206239]